[Event "Early-Titled-Tuesday-Blitz-May-28-2024"]
[Site "Chess.com"]
[Date "2024.05.28"]
[Round "7"]
[White "subham777"]
[Black "Naruto75_3"]
[Result "1-0"]
[WhiteElo "2562"]
[BlackElo "2410"]
[TimeControl "180+1"]
[EndTime "9:18:23 PDT"]
[Termination "subham777 won by checkmate"]

1. e4 {[%clk 0:03:00.9]} 1... c5 {[%clk 0:02:58.5]} 2. Nf3 {[%clk 0:02:57.1]}
2... d6 {[%clk 0:02:54.1]} 3. d4 {[%clk 0:02:57]} 3... cxd4 {[%clk 0:02:55]} 4.
Qxd4 {[%clk 0:02:57]} 4... Nf6 {[%clk 0:02:55.7]} 5. e5 {[%clk 0:02:57.1]} 5...
Nc6 {[%clk 0:02:48.3]} 6. Bb5 {[%clk 0:02:54.3]} 6... dxe5 {[%clk 0:02:45.6]} 7.
Qxd8+ {[%clk 0:02:52.1]} 7... Kxd8 {[%clk 0:02:46.5]} 8. Bxc6 {[%clk 0:02:52.7]}
8... bxc6 {[%clk 0:02:45.9]} 9. Nxe5 {[%clk 0:02:53.4]} 9... Ke8 {[%clk
0:02:44.1]} 10. Nc3 {[%clk 0:02:52.5]} 10... e6 {[%clk 0:02:43.3]} 11. Be3
{[%clk 0:02:48.1]} 11... Bb7 {[%clk 0:02:40.1]} 12. O-O-O {[%clk 0:02:47]} 12...
Bb4 {[%clk 0:02:39.1]} 13. a3 {[%clk 0:02:40.6]} 13... Be7 {[%clk 0:02:34.8]}
14. Rd2 {[%clk 0:02:33.8]} 14... Nd5 {[%clk 0:02:33.3]} 15. Ne4 {[%clk
0:02:25.2]} 15... f6 {[%clk 0:02:26.1]} 16. Nc4 {[%clk 0:02:23.8]} 16... Ba6
{[%clk 0:02:22.4]} 17. Na5 {[%clk 0:02:12.2]} 17... Rc8 {[%clk 0:02:05.3]} 18.
Bxa7 {[%clk 0:02:08.5]} 18... c5 {[%clk 0:02:00.6]} 19. c4 {[%clk 0:02:03.2]}
19... Nf4 {[%clk 0:01:49.4]} 20. Nd6+ {[%clk 0:01:52.1]} 20... Kd7 {[%clk
0:01:44.7]} 21. Nxc8+ {[%clk 0:01:28.9]} 21... Kxc8 {[%clk 0:01:45.2]} 22. Rhd1
{[%clk 0:01:27.8]} 22... Bd8 {[%clk 0:01:26.1]} 23. b4 {[%clk 0:01:10.5]} 23...
Bxa5 {[%clk 0:01:13.1]} 24. bxa5 {[%clk 0:01:10.5]} 24... Kb7 {[%clk 0:01:12.9]}
25. Rd7+ {[%clk 0:01:05.8]} 25... Ka8 {[%clk 0:01:10.9]} 26. Bxc5 {[%clk
0:01:04.5]} 26... Rc8 {[%clk 0:01:07.8]} 27. Rd8 {[%clk 0:00:50.2]} 27... Kb7
{[%clk 0:01:07.2]} 28. Rxc8 {[%clk 0:00:48]} 28... Kxc8 {[%clk 0:01:08.1]} 29.
g3 {[%clk 0:00:40.1]} 29... Ng6 {[%clk 0:01:07.8]} 30. Bb6 {[%clk 0:00:34.3]}
30... Ne5 {[%clk 0:01:06.1]} 31. f4 {[%clk 0:00:32.4]} 31... Nxc4 {[%clk
0:01:04.9]} 32. Rd8+ {[%clk 0:00:32.2]} 32... Kb7 {[%clk 0:01:05]} 33. Rd7+
{[%clk 0:00:31.6]} 33... Kc6 {[%clk 0:01:04.1]} 34. Rxg7 {[%clk 0:00:28]} 34...
Nxa3 {[%clk 0:01:03.3]} 35. Rxh7 {[%clk 0:00:25.2]} 35... f5 {[%clk 0:01:01.9]}
36. h4 {[%clk 0:00:22]} 36... Nc4 {[%clk 0:01:00.3]} 37. Rc7+ {[%clk 0:00:12.7]}
37... Kd5 {[%clk 0:00:59.6]} 38. Rc5+ {[%clk 0:00:03.3]} 38... Ke4 {[%clk
0:00:58.5]} 39. h5 {[%clk 0:00:03.4]} 39... Nd6 {[%clk 0:00:57.7]} 40. h6 {[%clk
0:00:03.2]} 40... Nf7 {[%clk 0:00:57.7]} 41. h7 {[%clk 0:00:03.8]} 41... Kf3
{[%clk 0:00:57.1]} 42. Rc7 {[%clk 0:00:04.1]} 42... Nh8 {[%clk 0:00:56.8]} 43.
Rg7 {[%clk 0:00:03.8]} 43... Ke4 {[%clk 0:00:54.5]} 44. Rg8 {[%clk 0:00:03.1]}
44... Nf7 {[%clk 0:00:53.8]} 45. Rf8 {[%clk 0:00:03.8]} 45... e5 {[%clk
0:00:52.8]} 46. Rxf7 {[%clk 0:00:03.7]} 46... exf4 {[%clk 0:00:52.5]} 47. gxf4
{[%clk 0:00:04.5]} 47... Kxf4 {[%clk 0:00:52]} 48. h8=Q {[%clk 0:00:05.1]} 48...
Bc4 {[%clk 0:00:51.7]} 49. Qd4+ {[%clk 0:00:05.2]} 49... Kg5 {[%clk 0:00:51.2]}
50. Rg7+ {[%clk 0:00:05.5]} 50... Kh6 {[%clk 0:00:50.6]} 51. Qf6+ {[%clk
0:00:06]} 51... Kh5 {[%clk 0:00:50.1]} 52. Qg5# {[%clk 0:00:06.9]} 1-0

[Event "Early-Titled-Tuesday-Blitz-May-28-2024"]
[Site "Chess.com"]
[Date "2024.05.28"]
[Round "7"]
[White "rionelG"]
[Black "zurzan"]
[Result "1-0"]
[WhiteElo "2306"]
[BlackElo "2145"]
[TimeControl "180+1"]
[EndTime "9:18:24 PDT"]
[Termination "rionelG won on time"]

1. e4 {[%clk 0:02:54.1]} 1... c5 {[%clk 0:03:00]} 2. g3 {[%clk 0:02:53.5]} 2...
g6 {[%clk 0:02:58]} 3. Bg2 {[%clk 0:02:53.4]} 3... Bg7 {[%clk 0:02:58.5]} 4. Ne2
{[%clk 0:02:54.3]} 4... Nc6 {[%clk 0:02:57.1]} 5. c3 {[%clk 0:02:54.3]} 5... e6
{[%clk 0:02:53.4]} 6. d4 {[%clk 0:02:54.1]} 6... cxd4 {[%clk 0:02:51.6]} 7. cxd4
{[%clk 0:02:55]} 7... Nge7 {[%clk 0:02:51.2]} 8. Nbc3 {[%clk 0:02:53.8]} 8...
O-O {[%clk 0:02:50.7]} 9. d5 {[%clk 0:02:51.5]} 9... exd5 {[%clk 0:02:49.1]} 10.
exd5 {[%clk 0:02:52.4]} 10... Ne5 {[%clk 0:02:37.9]} 11. O-O {[%clk 0:02:51.7]}
11... d6 {[%clk 0:02:34.3]} 12. h3 {[%clk 0:02:50.4]} 12... Bd7 {[%clk
0:02:32.7]} 13. Bf4 {[%clk 0:02:31.4]} 13... Rc8 {[%clk 0:02:26.2]} 14. Rc1
{[%clk 0:02:31.3]} 14... b5 {[%clk 0:02:23.9]} 15. Nd4 {[%clk 0:02:06.6]} 15...
a6 {[%clk 0:02:19.1]} 16. b3 {[%clk 0:01:51.2]} 16... Nf5 {[%clk 0:01:52.6]} 17.
Nce2 {[%clk 0:01:32.1]} 17... Rxc1 {[%clk 0:01:47.5]} 18. Bxc1 {[%clk
0:01:31.3]} 18... Qa5 {[%clk 0:01:29.8]} 19. Nxf5 {[%clk 0:01:29.2]} 19... Bxf5
{[%clk 0:01:29.2]} 20. Nd4 {[%clk 0:01:28.8]} 20... Bd7 {[%clk 0:01:24.7]} 21.
Qe2 {[%clk 0:00:38.8]} 21... Re8 {[%clk 0:01:18.9]} 22. Be3 {[%clk 0:00:39.3]}
22... Bc8 {[%clk 0:00:43.1]} 23. Nc6 {[%clk 0:00:35.6]} 23... Qc7 {[%clk
0:00:33.1]} 24. Rc1 {[%clk 0:00:33.4]} 24... Qd7 {[%clk 0:00:26.9]} 25. Qd2
{[%clk 0:00:17.4]} 25... Bb7 {[%clk 0:00:20.1]} 26. Bf4 {[%clk 0:00:13.9]} 26...
h6 {[%clk 0:00:11.3]} 27. h4 {[%clk 0:00:13.3]} 27... h5 {[%clk 0:00:09.9]} 28.
Qa5 {[%clk 0:00:11.6]} 28... Bxc6 {[%clk 0:00:05.2]} 29. dxc6 {[%clk 0:00:11.1]}
29... Qd8 {[%clk 0:00:05]} 30. c7 {[%clk 0:00:10.9]} 30... Qc8 {[%clk
0:00:05.9]} 31. Qd2 {[%clk 0:00:04.4]} 31... Nd7 {[%clk 0:00:05.5]} 32. Qxd6
{[%clk 0:00:04.3]} 32... Re7 {[%clk 0:00:03.6]} 33. Qxe7 {[%clk 0:00:03.4]} 1-0

[Event "Early-Titled-Tuesday-Blitz-May-28-2024"]
[Site "Chess.com"]
[Date "2024.05.28"]
[Round "7"]
[White "Lady_Nika"]
[Black "KogotBobra17"]
[Result "1-0"]
[WhiteElo "2524"]
[BlackElo "2631"]
[TimeControl "180+1"]
[EndTime "9:18:29 PDT"]
[Termination "Lady_Nika won by resignation"]

1. e4 {[%clk 0:02:48.2]} 1... c5 {[%clk 0:02:58.1]} 2. Nc3 {[%clk 0:02:48.2]}
2... Nc6 {[%clk 0:02:57.8]} 3. g3 {[%clk 0:02:49.1]} 3... g6 {[%clk 0:02:58]} 4.
Bg2 {[%clk 0:02:49.5]} 4... Bg7 {[%clk 0:02:58.7]} 5. d3 {[%clk 0:02:48.9]} 5...
e6 {[%clk 0:02:52.7]} 6. f4 {[%clk 0:02:48.6]} 6... d6 {[%clk 0:02:51.6]} 7. Nf3
{[%clk 0:02:48.9]} 7... Nge7 {[%clk 0:02:52.3]} 8. O-O {[%clk 0:02:49.2]} 8...
O-O {[%clk 0:02:53.1]} 9. Rb1 {[%clk 0:02:49.6]} 9... Rb8 {[%clk 0:02:53.5]} 10.
Ne2 {[%clk 0:02:49.9]} 10... b5 {[%clk 0:02:53.7]} 11. Be3 {[%clk 0:02:50.5]}
11... f5 {[%clk 0:01:56]} 12. h3 {[%clk 0:02:34.2]} 12... h6 {[%clk 0:01:50.3]}
13. g4 {[%clk 0:02:32.5]} 13... e5 {[%clk 0:01:37.4]} 14. gxf5 {[%clk
0:02:26.4]} 14... gxf5 {[%clk 0:01:38.3]} 15. fxe5 {[%clk 0:02:23.4]} 15... dxe5
{[%clk 0:01:35.8]} 16. Bxc5 {[%clk 0:02:11.8]} 16... f4 {[%clk 0:01:35.7]} 17.
d4 {[%clk 0:02:01.5]} 17... exd4 {[%clk 0:01:26.5]} 18. Nexd4 {[%clk 0:01:58]}
18... Bd7 {[%clk 0:00:42.9]} 19. c3 {[%clk 0:01:47.6]} 19... Rf7 {[%clk
0:00:38.5]} 20. Qb3 {[%clk 0:01:44.4]} 20... Qe8 {[%clk 0:00:31.6]} 21. Nxc6
{[%clk 0:01:42.5]} 21... Nxc6 {[%clk 0:00:32.5]} 22. Nd4 {[%clk 0:01:42.7]}
22... Ne5 {[%clk 0:00:31.1]} 23. Nf5 {[%clk 0:01:39.1]} 23... Bxf5 {[%clk
0:00:25.1]} 24. exf5 {[%clk 0:01:39]} 24... Qc8 {[%clk 0:00:25.8]} 25. Bd6
{[%clk 0:01:36.8]} 25... Rb6 {[%clk 0:00:22.1]} 26. Bxe5 {[%clk 0:01:36.4]}
26... Bxe5 {[%clk 0:00:22.8]} 27. Bd5 {[%clk 0:01:36.6]} 27... Rf6 {[%clk
0:00:20.2]} 28. Bxf7+ {[%clk 0:01:36.4]} 28... Rxf7 {[%clk 0:00:21.1]} 29. Qe6
{[%clk 0:01:30.1]} 29... Qc5+ {[%clk 0:00:13.3]} 30. Kh1 {[%clk 0:01:30.2]}
30... Qe3 {[%clk 0:00:07.9]} 31. Rg1+ {[%clk 0:01:26.9]} 31... Kf8 {[%clk
0:00:08.2]} 32. Qxh6+ {[%clk 0:01:06.6]} 32... Ke7 {[%clk 0:00:07.6]} 33. Rbf1
{[%clk 0:00:49.4]} 33... Qe4+ {[%clk 0:00:04.6]} 34. Rg2 {[%clk 0:00:49.6]}
34... f3 {[%clk 0:00:02.4]} 35. Qe6+ {[%clk 0:00:48]} 35... Kf8 {[%clk
0:00:02.2]} 36. Qc8+ {[%clk 0:00:39.9]} 36... Ke7 {[%clk 0:00:02.3]} 37. Qc5+
{[%clk 0:00:39.9]} 37... Bd6 {[%clk 0:00:02]} 38. Qxa7+ {[%clk 0:00:37.6]} 38...
Ke8 {[%clk 0:00:02.4]} 39. Rg8+ {[%clk 0:00:36.8]} 39... Bf8 {[%clk 0:00:03]}
40. Qb8+ {[%clk 0:00:35.5]} 40... Ke7 {[%clk 0:00:03.6]} 41. Qc7+ {[%clk
0:00:33.1]} 41... Ke8 {[%clk 0:00:03.8]} 42. Qc8+ {[%clk 0:00:33.2]} 42... Ke7
{[%clk 0:00:04.3]} 43. Qe6+ {[%clk 0:00:33.3]} 43... Qxe6 {[%clk 0:00:05]} 44.
fxe6 {[%clk 0:00:33.6]} 44... Kxe6 {[%clk 0:00:05.9]} 45. Rg3 {[%clk 0:00:29.8]}
45... f2 {[%clk 0:00:06.5]} 46. Kg2 {[%clk 0:00:29.8]} 46... Bc5 {[%clk
0:00:06.9]} 47. b4 {[%clk 0:00:29.2]} 47... Bb6 {[%clk 0:00:07]} 48. Rg6+ {[%clk
0:00:29.2]} 1-0

[Event "Early-Titled-Tuesday-Blitz-May-28-2024"]
[Site "Chess.com"]
[Date "2024.05.28"]
[Round "7"]
[White "AlbusSevresPotter"]
[Black "MaxLeto"]
[Result "1-0"]
[WhiteElo "2556"]
[BlackElo "2395"]
[TimeControl "180+1"]
[EndTime "9:18:29 PDT"]
[Termination "AlbusSevresPotter won on time"]

1. e4 {[%clk 0:03:00.9]} 1... c5 {[%clk 0:02:59.5]} 2. Nf3 {[%clk 0:03:00.2]}
2... d6 {[%clk 0:02:59.3]} 3. d4 {[%clk 0:02:59.7]} 3... cxd4 {[%clk 0:03:00.2]}
4. Nxd4 {[%clk 0:03:00.5]} 4... Nf6 {[%clk 0:03:00.7]} 5. Nc3 {[%clk 0:02:57]}
5... a6 {[%clk 0:03:01]} 6. Be3 {[%clk 0:02:54.6]} 6... Ng4 {[%clk 0:03:01]} 7.
Bg5 {[%clk 0:02:53.9]} 7... h6 {[%clk 0:03:01.2]} 8. Bh4 {[%clk 0:02:53.6]} 8...
g5 {[%clk 0:03:01.6]} 9. Bg3 {[%clk 0:02:53.5]} 9... Bg7 {[%clk 0:03:02]} 10.
Qd2 {[%clk 0:02:53.8]} 10... Nc6 {[%clk 0:02:59.5]} 11. Nb3 {[%clk 0:02:52.5]}
11... Be6 {[%clk 0:02:49.1]} 12. f3 {[%clk 0:02:50.1]} 12... Nge5 {[%clk
0:02:46.3]} 13. Bf2 {[%clk 0:02:26.3]} 13... Na5 {[%clk 0:01:58]} 14. Bd4 {[%clk
0:01:29.3]} 14... Nxb3 {[%clk 0:01:44.4]} 15. axb3 {[%clk 0:01:26.6]} 15... Qc7
{[%clk 0:01:29.3]} 16. Bb5+ {[%clk 0:01:17.7]} 16... Kf8 {[%clk 0:01:26.1]} 17.
O-O {[%clk 0:01:08.9]} 17... Rc8 {[%clk 0:01:25.4]} 18. Be2 {[%clk 0:01:07.9]}
18... Ng6 {[%clk 0:01:06.8]} 19. Kh1 {[%clk 0:00:49.5]} 19... Bxd4 {[%clk
0:00:53.6]} 20. Qxd4 {[%clk 0:00:50.4]} 20... Qc5 {[%clk 0:00:54.5]} 21. Qd2
{[%clk 0:00:43.4]} 21... Kg7 {[%clk 0:00:53.8]} 22. Rfd1 {[%clk 0:00:38.1]}
22... Qe5 {[%clk 0:00:51.1]} 23. Bf1 {[%clk 0:00:34.5]} 23... h5 {[%clk
0:00:46.3]} 24. Ne2 {[%clk 0:00:30.3]} 24... Qxb2 {[%clk 0:00:42.9]} 25. Nd4
{[%clk 0:00:30.5]} 25... g4 {[%clk 0:00:18.9]} 26. Bc4 {[%clk 0:00:20.5]} 26...
Bxc4 {[%clk 0:00:15.4]} 27. Rdb1 {[%clk 0:00:20.6]} 27... Qxa1 {[%clk
0:00:07.9]} 28. Rxa1 {[%clk 0:00:19.8]} 28... Be6 {[%clk 0:00:07.2]} 29. c4
{[%clk 0:00:17.6]} 29... Bd7 {[%clk 0:00:04.2]} 30. Qc3 {[%clk 0:00:17.7]} 30...
f6 {[%clk 0:00:03.6]} 31. Ra5 {[%clk 0:00:16.2]} 31... Rc5 {[%clk 0:00:03]} 32.
Qb4 {[%clk 0:00:13.8]} 32... Rxa5 {[%clk 0:00:02]} 33. Qxa5 {[%clk 0:00:14.7]}
33... Ne5 {[%clk 0:00:02.3]} 34. f4 {[%clk 0:00:14.3]} 34... Nd3 {[%clk
0:00:02.7]} 35. Qc7 {[%clk 0:00:12.9]} 35... Be8 {[%clk 0:00:01]} 36. Qxe7+
{[%clk 0:00:13.8]} 36... Bf7 {[%clk 0:00:01]} 37. Nf5+ {[%clk 0:00:14.2]} 37...
Kg8 {[%clk 0:00:01.1]} 38. Qxf6 {[%clk 0:00:13.7]} 38... Rh7 {[%clk 0:00:01]}
39. Qd8+ {[%clk 0:00:14.6]} 1-0

[Event "Early-Titled-Tuesday-Blitz-May-28-2024"]
[Site "Chess.com"]
[Date "2024.05.28"]
[Round "7"]
[White "SaraBlackPanther"]
[Black "wonderfultime"]
[Result "1-0"]
[WhiteElo "2769"]
[BlackElo "3001"]
[TimeControl "180+1"]
[EndTime "9:18:31 PDT"]
[Termination "SaraBlackPanther won by resignation"]

1. d4 {[%clk 0:03:00.9]} 1... d5 {[%clk 0:02:52.4]} 2. c4 {[%clk 0:02:59.5]}
2... c6 {[%clk 0:02:52.7]} 3. cxd5 {[%clk 0:02:54.8]} 3... cxd5 {[%clk
0:02:52.8]} 4. Nc3 {[%clk 0:02:55.4]} 4... Nf6 {[%clk 0:02:53.5]} 5. Bf4 {[%clk
0:02:55.9]} 5... Nc6 {[%clk 0:02:53.8]} 6. e3 {[%clk 0:02:55.8]} 6... a6 {[%clk
0:02:54.5]} 7. Be2 {[%clk 0:02:49.1]} 7... Bf5 {[%clk 0:02:52.7]} 8. g4 {[%clk
0:02:21.1]} 8... Bg6 {[%clk 0:02:18.1]} 9. h4 {[%clk 0:02:20.2]} 9... h5 {[%clk
0:02:13]} 10. g5 {[%clk 0:02:16.5]} 10... Ne4 {[%clk 0:02:12.9]} 11. Nxe4 {[%clk
0:02:08.4]} 11... Bxe4 {[%clk 0:02:11.2]} 12. Nf3 {[%clk 0:02:08.5]} 12... e6
{[%clk 0:02:11.2]} 13. O-O {[%clk 0:02:05.4]} 13... Bd6 {[%clk 0:02:11.4]} 14.
Bxd6 {[%clk 0:02:04.9]} 14... Qxd6 {[%clk 0:02:12.3]} 15. Nd2 {[%clk 0:02:05.2]}
15... Bg6 {[%clk 0:02:12.1]} 16. f4 {[%clk 0:02:01.7]} 16... O-O {[%clk
0:02:08.3]} 17. Bxh5 {[%clk 0:01:57.5]} 17... Ne7 {[%clk 0:02:08.1]} 18. Bg4
{[%clk 0:01:34.5]} 18... Rac8 {[%clk 0:02:06.7]} 19. h5 {[%clk 0:01:15.4]} 19...
Bd3 {[%clk 0:02:06.8]} 20. Rf2 {[%clk 0:01:12]} 20... Nf5 {[%clk 0:02:03.4]} 21.
Bxf5 {[%clk 0:00:54.3]} 21... Bxf5 {[%clk 0:02:04.3]} 22. h6 {[%clk 0:00:50.2]}
22... Rc2 {[%clk 0:01:21.6]} 23. hxg7 {[%clk 0:00:38.1]} 23... Kxg7 {[%clk
0:01:21.5]} 24. Ne4 {[%clk 0:00:28.2]} 24... Bxe4 {[%clk 0:01:14.6]} 25. Rxc2
{[%clk 0:00:28.9]} 25... Bxc2 {[%clk 0:01:15.2]} 26. Qxc2 {[%clk 0:00:29.8]}
26... Rh8 {[%clk 0:01:15.6]} 27. Kg2 {[%clk 0:00:27.2]} 27... Qb4 {[%clk
0:01:16.1]} 28. a3 {[%clk 0:00:23.4]} 28... Qb5 {[%clk 0:01:14.6]} 29. Kg3
{[%clk 0:00:19.3]} 29... a5 {[%clk 0:01:10.2]} 30. a4 {[%clk 0:00:17.3]} 30...
Qd7 {[%clk 0:01:03]} 31. Rc1 {[%clk 0:00:16.7]} 31... e5 {[%clk 0:01:03.3]} 32.
f5 {[%clk 0:00:15.1]} 32... e4 {[%clk 0:00:56.8]} 33. Qf2 {[%clk 0:00:10]} 33...
Qxa4 {[%clk 0:00:38.1]} 34. Qf4 {[%clk 0:00:09.6]} 34... Qe8 {[%clk 0:00:36.7]}
35. Rc7 {[%clk 0:00:08.8]} 35... Qd8 {[%clk 0:00:11.6]} 36. Rxb7 {[%clk
0:00:09]} 36... Rh5 {[%clk 0:00:10.5]} 37. Qe5+ {[%clk 0:00:07.3]} 37... Kh7
{[%clk 0:00:03.1]} 38. Rxf7+ {[%clk 0:00:06.9]} 1-0

[Event "Early-Titled-Tuesday-Blitz-May-28-2024"]
[Site "Chess.com"]
[Date "2024.05.28"]
[Round "7"]
[White "C_K_G"]
[Black "Szachulec75"]
[Result "0-1"]
[WhiteElo "2292"]
[BlackElo "2180"]
[TimeControl "180+1"]
[EndTime "9:18:32 PDT"]
[Termination "Szachulec75 won on time"]

1. e4 {[%clk 0:02:56.5]} 1... d6 {[%clk 0:02:58]} 2. Nf3 {[%clk 0:02:56.9]} 2...
Nf6 {[%clk 0:02:56]} 3. Nc3 {[%clk 0:02:57.4]} 3... c6 {[%clk 0:02:52]} 4. d4
{[%clk 0:02:57.7]} 4... Nbd7 {[%clk 0:02:50.3]} 5. Be2 {[%clk 0:02:55.2]} 5...
e5 {[%clk 0:02:50.8]} 6. O-O {[%clk 0:02:52.9]} 6... Be7 {[%clk 0:02:50.8]} 7.
h3 {[%clk 0:02:52.9]} 7... O-O {[%clk 0:02:50.3]} 8. Re1 {[%clk 0:02:53]} 8...
a5 {[%clk 0:02:49.9]} 9. a4 {[%clk 0:02:52.5]} 9... Qc7 {[%clk 0:02:50.3]} 10.
Be3 {[%clk 0:02:52.3]} 10... Re8 {[%clk 0:02:49.1]} 11. Qd2 {[%clk 0:02:51.5]}
11... Nf8 {[%clk 0:02:47.3]} 12. Rad1 {[%clk 0:02:48]} 12... Be6 {[%clk
0:02:46.1]} 13. d5 {[%clk 0:02:38.2]} 13... Bd7 {[%clk 0:02:45.3]} 14. Bd3
{[%clk 0:02:20.8]} 14... cxd5 {[%clk 0:02:42.5]} 15. exd5 {[%clk 0:02:15.5]}
15... Ng6 {[%clk 0:02:36]} 16. Bg5 {[%clk 0:02:10.4]} 16... Qb6 {[%clk
0:02:27.4]} 17. b3 {[%clk 0:02:05.3]} 17... Rac8 {[%clk 0:02:21.5]} 18. h4
{[%clk 0:01:43.6]} 18... h6 {[%clk 0:02:13.9]} 19. Bxg6 {[%clk 0:01:29.2]} 19...
fxg6 {[%clk 0:02:04]} 20. Bxh6 {[%clk 0:01:27]} 20... gxh6 {[%clk 0:02:03]} 21.
Qxh6 {[%clk 0:01:25.9]} 21... Bf5 {[%clk 0:01:55.8]} 22. Ne2 {[%clk 0:01:03]}
22... Bf8 {[%clk 0:01:26]} 23. Qg5 {[%clk 0:00:40.1]} 23... Nh7 {[%clk
0:01:21.7]} 24. Qg3 {[%clk 0:00:36.2]} 24... Rxc2 {[%clk 0:01:02.2]} 25. h5
{[%clk 0:00:31.2]} 25... Nf6 {[%clk 0:00:58.9]} 26. hxg6 {[%clk 0:00:26.2]}
26... Bg7 {[%clk 0:00:29.3]} 27. Ned4 {[%clk 0:00:14.8]} 27... exd4 {[%clk
0:00:27.2]} 28. Rxe8+ {[%clk 0:00:14.9]} 28... Nxe8 {[%clk 0:00:26.2]} 29. Nh4
{[%clk 0:00:10.6]} 29... Bd7 {[%clk 0:00:20.3]} 30. Qf4 {[%clk 0:00:08.8]} 30...
Nf6 {[%clk 0:00:19.6]} 31. Nf5 {[%clk 0:00:07.6]} 31... Qxb3 {[%clk 0:00:10.9]}
32. Ne7+ {[%clk 0:00:06.6]} 32... Kf8 {[%clk 0:00:10.5]} 33. Nf5 {[%clk
0:00:04.7]} 33... Qb4 {[%clk 0:00:08.8]} 34. Nxd6 {[%clk 0:00:02.7]} 34... d3
{[%clk 0:00:07.6]} 35. Qe5 {[%clk 0:00:01.8]} 35... Qh4 {[%clk 0:00:03.6]} 0-1

[Event "Early-Titled-Tuesday-Blitz-May-28-2024"]
[Site "Chess.com"]
[Date "2024.05.28"]
[Round "7"]
[White "The_Machine04"]
[Black "KononenkoD"]
[Result "1-0"]
[WhiteElo "2804"]
[BlackElo "2597"]
[TimeControl "180+1"]
[EndTime "9:18:33 PDT"]
[Termination "The_Machine04 won by checkmate"]

1. d4 {[%clk 0:03:00.9]} 1... d5 {[%clk 0:02:57.6]} 2. Nf3 {[%clk 0:03:01.2]}
2... Nf6 {[%clk 0:02:57.3]} 3. e3 {[%clk 0:03:01]} 3... c6 {[%clk 0:02:54.3]} 4.
Nbd2 {[%clk 0:03:00.9]} 4... Bf5 {[%clk 0:02:54.3]} 5. Ne5 {[%clk 0:03:01.2]}
5... Nbd7 {[%clk 0:02:49.4]} 6. g4 {[%clk 0:03:01.3]} 6... Be4 {[%clk
0:02:48.7]} 7. f3 {[%clk 0:03:01.1]} 7... Bg6 {[%clk 0:02:46.5]} 8. h4 {[%clk
0:03:01.2]} 8... h5 {[%clk 0:02:43.9]} 9. Nxg6 {[%clk 0:03:01.3]} 9... fxg6
{[%clk 0:02:44.8]} 10. g5 {[%clk 0:02:59.7]} 10... Ng8 {[%clk 0:02:40.9]} 11.
Bd3 {[%clk 0:02:51.4]} 11... Kf7 {[%clk 0:02:40]} 12. c4 {[%clk 0:02:51.3]}
12... e6 {[%clk 0:02:39.7]} 13. e4 {[%clk 0:02:51.6]} 13... Bd6 {[%clk
0:02:29.8]} 14. Qe2 {[%clk 0:02:34.3]} 14... Ne7 {[%clk 0:02:18.6]} 15. b3
{[%clk 0:02:24.3]} 15... Re8 {[%clk 0:02:16.2]} 16. Bb2 {[%clk 0:02:23.8]} 16...
Bg3+ {[%clk 0:02:13.1]} 17. Kf1 {[%clk 0:02:22.5]} 17... Bf4 {[%clk 0:02:13.1]}
18. Kg2 {[%clk 0:02:20.9]} 18... Nf8 {[%clk 0:02:07.6]} 19. Nf1 {[%clk
0:02:17.6]} 19... Kg8 {[%clk 0:02:00.1]} 20. Ne3 {[%clk 0:02:08.8]} 20... Bxe3
{[%clk 0:01:58.9]} 21. Qxe3 {[%clk 0:02:09.7]} 21... Qc7 {[%clk 0:01:50.5]} 22.
Rae1 {[%clk 0:02:08.9]} 22... Kh7 {[%clk 0:01:47.6]} 23. Re2 {[%clk 0:02:02.4]}
23... a5 {[%clk 0:01:42.1]} 24. Rhe1 {[%clk 0:02:00.4]} 24... a4 {[%clk
0:01:28.3]} 25. Qf2 {[%clk 0:01:57.2]} 25... axb3 {[%clk 0:01:27.7]} 26. axb3
{[%clk 0:01:58]} 26... Qd7 {[%clk 0:01:17.9]} 27. Bb1 {[%clk 0:01:46.4]} 27...
b5 {[%clk 0:01:15.4]} 28. c5 {[%clk 0:01:45.5]} 28... b4 {[%clk 0:01:00.5]} 29.
Bc1 {[%clk 0:01:43.7]} 29... Rad8 {[%clk 0:00:54.8]} 30. Be3 {[%clk 0:01:38.2]}
30... Qc7 {[%clk 0:00:44.9]} 31. Qg3 {[%clk 0:01:33.7]} 31... Qxg3+ {[%clk
0:00:43.6]} 32. Kxg3 {[%clk 0:01:34.6]} 32... dxe4 {[%clk 0:00:41.4]} 33. fxe4
{[%clk 0:01:34.7]} 33... Ra8 {[%clk 0:00:38.6]} 34. Bf4 {[%clk 0:01:33.3]} 34...
Red8 {[%clk 0:00:36.9]} 35. Rd1 {[%clk 0:01:26.5]} 35... Ra3 {[%clk 0:00:35.7]}
36. Rb2 {[%clk 0:01:21.6]} 36... Nc8 {[%clk 0:00:33.5]} 37. Be3 {[%clk
0:01:17.7]} 37... Ne7 {[%clk 0:00:30.6]} 38. Bd3 {[%clk 0:01:15.7]} 38... e5
{[%clk 0:00:23.2]} 39. dxe5 {[%clk 0:01:14.5]} 39... Ne6 {[%clk 0:00:19.7]} 40.
Rbb1 {[%clk 0:01:13]} 40... Ra5 {[%clk 0:00:17.9]} 41. Bc4 {[%clk 0:01:10.9]}
41... Rxd1 {[%clk 0:00:17.8]} 42. Rxd1 {[%clk 0:01:11.8]} 42... Nxc5 {[%clk
0:00:18.4]} 43. Bxc5 {[%clk 0:01:05.8]} 43... Rxc5 {[%clk 0:00:18.7]} 44. e6
{[%clk 0:01:00.4]} 44... Re5 {[%clk 0:00:13.8]} 45. Kf4 {[%clk 0:01:00]} 45...
Ra5 {[%clk 0:00:14]} 46. Rd7 {[%clk 0:01:00]} 46... Ng8 {[%clk 0:00:14.3]} 47.
e7 {[%clk 0:00:57.2]} 47... Nxe7 {[%clk 0:00:14.4]} 48. Rxe7 {[%clk 0:00:57.8]}
48... Ra8 {[%clk 0:00:14.7]} 49. e5 {[%clk 0:00:57.2]} 49... c5 {[%clk
0:00:14.8]} 50. e6 {[%clk 0:00:57.3]} 50... Rf8+ {[%clk 0:00:11.8]} 51. Rf7
{[%clk 0:00:57.4]} 51... Re8 {[%clk 0:00:09.4]} 52. e7 {[%clk 0:00:56.9]} 52...
Rb8 {[%clk 0:00:06.1]} 53. Ke5 {[%clk 0:00:50.7]} 53... Rb6 {[%clk 0:00:05.4]}
54. e8=Q {[%clk 0:00:47.2]} 54... Re6+ {[%clk 0:00:05.7]} 55. Qxe6 {[%clk
0:00:47.2]} 55... Kg8 {[%clk 0:00:05.2]} 56. Rxg7+ {[%clk 0:00:44.8]} 56... Kxg7
{[%clk 0:00:04.7]} 57. Qf7+ {[%clk 0:00:45.1]} 57... Kh8 {[%clk 0:00:04.8]} 58.
Qg8# {[%clk 0:00:45.5]} 1-0